Cogmind - Beta 9.3 @@@ ROGUE MODE // 2019.12.17 @ 00:35:26 // Winter2019/RPGLIKE Player: Cassie Rose Result: Destroyed by Y-45 Defender with Heavy Assault Rifle Performance ------------- Evolutions (1) 500 Regions Visited (2) 400 Robots Destroyed (15) 75 Value Destroyed (331) 331 Prototype IDs (3) 60 Alien Tech Used (0) 0 Bonus (0) 0 TOTAL SCORE: 1366 Bonus ------- None Cogmind --------- Core Integrity 0/750 Matter 300/300 Energy 227/265 System Corruption 0% Temperature Cool (9) Movement Hovering (56) Location -9/Materials Parts ------- > --- POWER (1) -------- Improved Ion Engine > --- PROPULSION (2) --- Improved Hover Unit Improved Hover Unit > --- UTILITY (3) ------ Improved Heat Sink Terrain Scanner ECM Suite > --- WEAPON (2) ------- Beam Rifle Light Assault Rifle > --- INVENTORY (2) ---- Mini Grenade Launcher Peak State ------------ > --- POWER ------------ Heavy Ion Engine > --- PROPULSION ------- Improved Hover Unit Improved Hover Unit > --- UTILITY ---------- Improved Heat Sink Terrain Scanner ECM Suite > --- WEAPON ----------- EM Pulse Gun Light Assault Rifle > --- INVENTORY -------- Improved Ion Engine Mini Grenade Launcher [Rating: 14] Favorites ----------- Power Light Ion Engine Engine Light Ion Engine Propulsion Flight Unit Wheel Compact Wheel Hover Unit Improved Hover Unit Flight Unit Flight Unit Utility ECM Suite Device ECM Suite Processor Seismic Analyzer Weapon Light Assault Rifle Energy Gun EM Pulse Gun Ballistic Gun Light Assault Rifle Build | -11 -10 -9 ------- Run | Scr Mat Mat Slots Evolved 4 | 3 . 1 Power . | . . . Propulsion 1 | 1 . . Utility 2 | 1 . 1 Weapon 1 | 1 . . Parts Attached 23 | 7 11 5 Power 5 | 1 1 3 Engine 5 | 1 1 3 Core . | . . . Reactor . | . . . Propulsion 7 | 3 4 . Treads . | . . . Leg . | . . . Wheel 3 | 3 . . Hover 2 | . 2 . Flight 2 | . 2 . Utility 7 | 1 5 1 Device 6 | . 5 1 Storage . | . . . Processor 1 | 1 . . Hackware . | . . . Protection . | . . . Artifact . | . . . Weapon 4 | 2 1 1 Energy Gun 2 | . 1 1 Energy Cannon . | . . . Ballistic Gun 2 | 2 . . Ballistic Cannon . | . . . Launcher . | . . . Special Weapon . | . . . Impact Weapon . | . . . Slashing Weapon . | . . . Piercing Weapon . | . . . Special Melee Weapon . | . . . Unidentified Prototypes 1 | . . 1 Parts Lost . | . . . Power . | . . . Propulsion . | . . . Utility . | . . . Weapon . | . . . Highest Loss Streak . | . . . Average Slot Usage (%) 98 | . 99 98 Engine 13 | . 14 12 Hover 8 | . 1 25 Flight 17 | . 25 . Device 29 | . 26 36 Energy Gun 8 | . 7 10 Ballistic Gun 17 | . 19 12 Naked Turns . | . . . Heaviest Build 13 | 6 8 13 Greatest Support 32 | 32 32 16 Greatest Overweight (x) 1 | 1 1 . Average Overweight (x) . | . . . Largest Inventory Capacity 2 | 1 1 2 Average Capacity 1 | 1 1 1 Most Carried 2 | 1 1 2 Average Carried . | . . 1 Final Capacity 2 | 1 1 2 Final Carried 1 | . 1 1 Class Distribution -------------------- 50% | Mutant 49% | Scout Dominant Class ---------------- Mutant | -10/Materials Scout | -9/Materials Resources | -11 -10 -9 ----------- Run | Scr Mat Mat Matter Collected 530 | 291 130 109 Remotely . | . . . Salvage Created 685 | 110 123 452 Parts 47 | 8 14 25 Haulers Intercepted . | . . . Recyclers Shooed 2 | 1 . 1 Parts Field Recycled . | . . . Retrieved Matter . | . . . Parts Self-Destructed . | . . . Prevented . | . . . Kills | -11 -10 -9 ------- Run | Scr Mat Mat Combat Hostiles Destroyed 6 | . 3 3 Guns 6 | . 3 3 Classes Destroyed 7 | 2 3 2 Worker 1 | . . 1 Tunneler 2 | 2 . . Recycler 3 | 1 . 2 Operator 1 | . 1 . Watcher 2 | . 1 1 Grunt 3 | . 3 . Sentry 3 | . . 3 Best Kill Streak 3 | 2 3 3 Combat Bots Only 1 | . 1 1 Max Kills in Single Turn 1 | 1 1 1 Gunslinging . | . . . Exploded . | . . . Melee . | . . . Uniques/NPCs Destroyed . | . . . Combat | -11 -10 -9 -------- Run | Scr Mat Mat Damage Taken 1053 | . 471 582 Core 846 | . 371 475 Absorbed by Shields . | . . . Redirected to Core 707 | . 322 385 Core Remaining (%) 79 | 100 59 . Volleys Fired 82 | 6 37 39 Largest 2 | 2 2 2 Hottest 76 | 40 60 76 Shots Fired 159 | 12 74 73 Gun 159 | 12 74 73 Cannon . | . . . Launcher . | . . . Special . | . . . Kinetic 88 | 12 37 39 Thermal 8 | . . 8 Explosive . | . . . Electromagnetic 63 | . 37 26 Robot Hit Streak 23 | 4 7 23 Robot Miss Streak 7 | 2 6 7 Penetration Max . | . . . Secondary Targets 5 | . 3 2 Max Gunslinging Chain 1 | . 1 1 Shots Hit Robots 101 | 7 43 51 Core Hits 34 | 5 11 18 Critical Hits 1 | . 1 . Critical Kills . | . . . Critical Parts Destroyed 1 | . 1 . Melee Attacks . | . . . Impact . | . . . Slashing . | . . . Piercing . | . . . Sneak Attacks . | . . . Combat Hostiles . | . . . Follow-up Attacks . | . . . Damage Inflicted 1147 | 81 517 549 Guns 1123 | 81 493 549 Cannons . | . . . Explosions 24 | . 24 . Melee . | . . . Ramming . | . . . Kinetic 548 | 81 223 244 Thermal 111 | . 24 87 Explosive . | . . . Electromagnetic 488 | . 270 218 Impact . | . . . Slashing . | . . . Piercing . | . . . Highest Corruption 1 | . 1 . Average Corruption 1 | . 1 . Corruption Purged . | . . . Overload Shots . | . . . Overflow Damage . | . . . Projectiles . | . . . Explosions . | . . . Melee . | . . . Knockbacks . | . . . Impact . | . . . Kinetic . | . . . Secondary . | . . . Self-Inflicted Damage . | . . . Shots . | . . . Rammed . | . . . Targets Rammed . | . . . Kicked . | . . . Crushed . | . . . Highest Temperature 314 | . 314 4 Average Temperature 123 | . 128 4 Received Heat Transfer 411 | . 231 180 Effects 1 | . 1 . Interference 1 | . 1 . Siege Activations . | . . . Robots Corrupted . | . . . Combat Hostiles . | . . . Parts Fried 2 | . . 2 Impact Corruptions . | . . . Robots Melted . | . . . Combat Hostiles . | . . . Parts Melted . | . . . Heat Transferred 272 | . 50 222 Parts Sabotaged . | . . . Parts Stolen . | . . . Parts Stripped . | . . . Power Chain Reactions 1 | . 1 . Missiles Intercepted . | . . . Alert | -11 -10 -9 ------- Run | Scr Mat Mat Peak Influence 176 | 15 101 176 Average Influence 41 | 7 33 80 Maximum Alert Level . | . . . Low Security (%) 100 | 100 100 100 Level 1 . | . . . Level 2 . | . . . Level 3 . | . . . Level 4 . | . . . Level 5 . | . . . High Security . | . . . Max Security . | . . . Squads Dispatched 2 | . 2 . Investigation 1 | . 1 . Extermination . | . . . Reinforcement 1 | . 1 . Assault . | . . . Garrison . | . . . Intercept . | . . . Construction Impeded . | . . . Haulers Reinforced . | . . . Stealth | -11 -10 -9 --------- Run | Scr Mat Mat Distress Signals 1 | . . 1 Communications Jammed . | . . . Distress Signals . | . . . Times Spotted 14 | . 8 6 Peak Tracking Total 4 | . 4 2 Tactical Retreats 2 | . 2 . Traps | -11 -10 -9 ------- Run | Scr Mat Mat Traps Triggered 2 | . 2 . Indirectly . | . . . Trap Hack Attempts . | . . . Triggered . | . . . Disarmed . | . . . Reprogrammed . | . . . Reused . | . . . Traps Extracted . | . . . Installed . | . . . Triggered . | . . . Machines | -11 -10 -9 ---------- Run | Scr Mat Mat Machines Disabled . | . . . Max in Single Turn . | . . . Machines Sabotaged . | . . . Garrisons Compromised . | . . . Overloaded Fab Kills . | . . . Fab Network Shutdowns . | . . . Hacking | -11 -10 -9 --------- Run | Scr Mat Mat Machines Accessed 2 | . . 2 Terminals 2 | . . 2 Fabricators . | . . . Repair Stations . | . . . Recycling Units . | . . . Scanalyzers . | . . . Garrison Access . | . . . Total Hacks 8 | . . 8 Successful 5 | . . 5 Failed 3 | . . 3 Catastrophic . | . . . Database Lockouts . | . . . Manual 6 | . . 6 Terminals 8 | . . 8 Fabricators . | . . . Repair Stations . | . . . Recycling Units . | . . . Scanalyzers . | . . . Garrison Access . | . . . Terminal Hacks 3 | . . 3 Prototype ID Bank 1 | . . 1 Zone Layout 2 | . . 2 Fabricator Hacks . | . . . Repair Station Hacks . | . . . Recycling Unit Hacks . | . . . Scanalyzer . | . . . Garrison Access Hacks . | . . . Unauthorized Hacks 4 | . . 4 Terminals 2 | . . 2 Botnet 2 | . . 2 Fabricators . | . . . Repair Stations . | . . . Recycling Units . | . . . Scanalyzers . | . . . Garrison Access . | . . . Data Cores Recovered . | . . . Used . | . . . Hacking Detections 1 | . . 1 Full Trace Events . | . . . Feedback Events . | . . . Feedback Blocked . | . . . Robot Schematics Acquired . | . . . Robots Built . | . . . Matter . | . . . Time . | . . . Total Robot Build Rating . | . . . Part Schematics Acquired . | . . . Parts Built . | . . . Matter . | . . . Time . | . . . Total Part Build Rating . | . . . Parts Repaired . | . . . Time . | . . . Parts Recycled . | . . . Recycled Matter . | . . . Retrieved Matter . | . . . Retrieved Components . | . . . Parts Scanalyzed . | . . . Part Schematics Acquired . | . . . Parts Damaged . | . . . Bothacking | -11 -10 -9 ------------ Run | Scr Mat Mat Used RIF Installer . | . . . Robots Hacked . | . . . Non-combat . | . . . Combat . | . . . Robot Hacks Applied . | . . . Relay Couplers Released . | . . . Robots Rewired . | . . . Allies Hacked . | . . . Hacks Repelled . | . . . Allies | -11 -10 -9 -------- Run | Scr Mat Mat Total Allies . | . . . Largest Group . | . . . Highest-Rated Group . | . . . Highest-Rated Ally . | . . . Total Orders . | . . . Ally Attacks . | . . . Total Damage . | . . . Kills . | . . . Allies Corrupted . | . . . Allies Melted . | . . . Intel | -11 -10 -9 ------- Run | Scr Mat Mat Robot Analysis Total . | . . . Derelict Logs Recovered . | . . . Drone Launches . | . . . Drone Recoveries . | . . . Exploration | -11 -10 -9 ------------- Run | Scr Mat Mat Turns Passed 771 | 95 480 196 Spaces Moved 500 | 50 311 139 Core 11 | 11 . . Treads . | . . . Legs . | . . . Wheels 53 | 39 14 . Hover 189 | . 50 139 Flight 247 | . 247 . Fastest Speed 37 | 50 37 56 Average Speed 51 | 91 43 56 Slowest Speed 120 | 100 120 56 Overloaded Moves . | . . . Propulsion Burnouts . | . . . Robots Hopped . | . . . Cave-ins Triggered . | . . . Exploration Rate (%) 19 | 4 36 17 Regions Visited 2 Branch Regions . Pre-discovered Areas . | . . . Known Exits Taken . | . . . Unknown Exits Taken 2 | 1 1 . Scrap Searched . | . . . Spaces Dug . | . . . Terrain Destroyed 1 | . 1 . Melee . | . . . Projectile . | . . . AOE 1 | . 1 . Actions | -11 -10 -9 --------- Run | Scr Mat Mat Total 871 | 88 589 194 Wait 238 | 19 215 4 Move 498 | 49 310 139 Hop . | . . . Pick Up 15 | 6 5 4 Fast Attach 4 | 1 3 . Attach 10 | 5 2 3 Detach . | . . . Swap 9 | 1 6 2 Drop 11 | 1 7 3 Fire 82 | 6 37 39 Melee . | . . . Ram . | . . . Kick . | . . . Crush . | . . . Escape Stasis . | . . . Rewire . | . . . Trap . | . . . Miscellaneous 4 | . 4 . Route ------- -11/Scrapyard -10/Materials (discovered 2 exits: *Mat / [*Min]) -9/Materials History --------- Turn | Location | Event 1 | -11/Scrapyard | Upgraded with Propulsion slot (x1) 1 | -11/Scrapyard | Upgraded with Utility slot (x1) 1 | -11/Scrapyard | Upgraded with Weapon slot (x1) 2 | -11/Scrapyard | Met Revision 17 43 | -11/Scrapyard | Discovered new exit (range 16) 96 | -11/Scrapyard | Entered Materials 268 | -10/Materials | Discovered new exit (range 8) 344 | -10/Materials | Discovered new exit (range 13) 576 | -10/Materials | Entered another Materials area 578 | -9/Materials | Reached level 2 582 | -9/Materials | Upgraded with Utility slot (x1) 646 | -9/Materials | Core integrity fell below 50% 754 | -9/Materials | Core integrity fell below 20% 772 | -9/Materials | Destroyed by Y-45 Defender with Heavy Assault Rifle Last Messages --------------- 00726_ K-01 Serf collects debris. 00731_ Acquired Prototype Engine. 00732_ Identified Hvy. Ion Engine. 00732_ Malfunction: Power surge. 00732_ Broken EM Pulse Gun permanently disabled. 00733_ K-01 Serf collects debris. 00733_ Dropped Faulty Hvy. Ion Engine. 00734_ Dropped Broken EM Pulse Gun. 00737_ K-01 Serf collects debris. 00738_ Acquired 33 matter. 00739_ Acquired Beam Rifle. 00741_ K-01 Serf collects debris. 00752_ Destroyed Hover Unit. 00754_ W-16 Scout destroyed. 00754_ Switching to secondary target: Y-45 Defender. 00755_ Acquired 15 matter. 00761_ K-01 Serf collects debris. 00766_ K-01 Serf destroyed. 00767_ Extracted 6 matter. 00769_ Extracted 1 matter. Map ----- +----------------------------------------------------+ | ?????????????????????????????????????????? | | ?????????????????????????????????????????? | | ?????????????????????????????????????????? | | ??????????????????#????#?????????????????? | | ???????????????#???????#?????????????????? | | ???????????? ?????#???#?#????????????????? | | ?????????????????#?#???#?????????????????? | | ????????? ?????#?##???##??#??????????????? | | ????????#?????###?#?????????#????????????? | | ????????###??#????????#??#?#?##??????????? | | ??????????? ???#?##?#????#??#????????????? | | ???????#??# ???#######?##?###????????????? | | ???????##?# ?####"""###???##?#???????????? | | ???????#?#? #####"T"#######??#???????????? | | ?????????## #?# ####???##?????????? | | ????#?#?### ### ]]= #########?????????? | | ????##?#?## ## ]*[ ########??????????? | | ???######## ### ]* ######????????????? | | ?????###### ### #######?#?????????? | | ????####### ### """ #######?##????????? | | ????####### ### """ ####??##?#????????? | | ?? ? ? ## ### """ #####?##?#????????? | | ???"""?" ## ### [% ########??????????? | | ???""""" ## ######+############?#????????? | | ? """"" # *!!########?###?????????? | | # + @=!= Y ??????? | | # """"" # !%#######+#?###????????? | | ?? """""?######## *##### ##????????? | | ????"""? ######## ##?## ?#?????????? | | ??????? ######## ####? ?? ?#????????? | | ????############# ##### ??????????? | | ?????########### #### #?????????? | | ?##??########### k #### ???????????? | | ???#?# # [ ########????????????? | | ?????# ? # ########?##?????????? | | ???#?# # % ##?#######??????????? | | ?????# ## [!##########???????????? | | ????## """ ##!!%############?????????? | | #???## """ ##[% ###########??????????? | | ?????# """ #= ###?#######??????????? | | ???### ## ##?########??????????? | | ????######+###### ####?## ###??????????? | | ???##### #### ##### # ?????????? | | ???##### =%! ##### # ?????????? | | #??##### T [ T +??????????? | | ?#?##?## ##### #??????????? | | ???###?# ############ #??????????? | | #???##### #####?######### ##???????????? | | ??#?##### ############### ##???????????? | | #??#?#### # #####?# ##???????????? | +----------------------------------------------------+ Best States ------------- Heat Dissipation 51 Energy Generation 17 Energy Capacity 265 Matter Stores 300 Matter Capacity 300 Sight Range 16 Robot Scan Range 12 Terrain Scan Range 14 Terrain Scan Density 360 ECM Strength 1 Evasion (%) 62 Item Schematics ----------------- None Robot Schematics ------------------ None Fabricated ------------ Nothing Alien Tech Used ----------------- None Achievements -------------- None Challenges ------------ None RPGLIKE | -11 -10 -9 --------- Run | Scr Mat Mat Levels Raised 1 | . . 1 XP Earned 5450 | 3000 435 2015 XP Spent 4460 | 2995 . 1465 Upgrades 21 | 16 . 5 Propulsion Slot 1 | 1 . . Utility Slot 2 | 1 . 1 Weapon Slot 1 | 1 . . Core Integrity 3 | 2 . 1 Heat Dissipation 2 | . . 2 Energy Generation 1 | 1 . . Inventory Capacity 2 | 1 . 1 Sensor Range 6 | 6 . . Terrain Scan Density 3 | 3 . . Protomatter Created 75 | . 75 . Integrity Restored 90 | . 90 . Core 90 | . 90 . Protomatter Decayed 45 | . 45 . Game ------ Seed ImpulseMeleeMediator Manual? 0 Play Time 00:17:17 Cumulative 63.1 hours Start 2019.12.17 @ 00:06:07 End 2019.12.17 @ 00:35:26 Sessions 1 Manual Loads 0 Difficulty Rogue Special Mode Winter2019/RPGLIKE Game No. 105 Rogue 105 Adventurer 0 Explorer 0 Win Type - Total 0 Types 0/0/0/0/0/0/0 Lore% 22 Gallery% 26 Achievement% 26 Wizard Run 0 Options --------- ASCII 0 Keyboard 0 Movement Arrows Keybinds 0 Fullscreen 1 Font 18/SmallcapsGlow Map View 76x50 Tactical HUD 1 Map Filters NONE Filters LOW_CONTRAST(13,24,33)|BRIGHTNESS(120)|SATURATION(80) Steam 1 RUN: f75b9ec0-98b0-4dce-91cd-e4b604f6f75a